bitfinex-derivatives/quotes_BTCF0:USTF0_20241110
["timestamp","ask_amount","ask_price","bid_price","bid_amount"]
[1731221283098,0.10949997,78718.0,78717.0,0.00512894]
[1731221283405,0.10964347,78718.0,78698.0,0.3608]
[1731221283695,0.50895772,78711.0,78698.0,0.36148]
[1731221283898,0.07009997,78710.0,78698.0,0.3608]
[1731221284605,0.11349997,78710.0,78704.0,0.05272889]
[1731221284801,0.07009997,78709.0,78704.0,0.05272889]
[1731221286191,0.03110809,78708.0,78704.0,0.05272889]
[1731221286397,0.36148,78711.0,78704.0,0.05272889]
[1731221286398,0.07010393,78707.0,78704.0,0.05272889]
[1731221286596,0.03110809,78706.0,78705.0,0.33755389]
[1731221287000,0.03110809,78706.0,78705.0,0.69835389]
[1731221287201,0.03110809,78706.0,78705.0,0.78075389]
[1731221287993,0.03110752,78706.0,78705.0,0.78075389]
[1731221288292,0.0398,78717.0,78705.0,0.78075389]
[1731221288498,0.03110764,78716.0,78706.0,0.0423]
[1731221288806,0.03110764,78715.0,78707.0,0.19085578]
[1731221289104,0.03110764,78714.0,78707.0,0.19085578]
[1731221289300,0.03110764,78713.0,78707.0,0.19085578]
[1731221289513,0.03110764,78712.0,78707.0,0.19085578]
[1731221289798,0.03110764,78711.0,78707.0,0.19085578]
[1731221290007,0.03110764,78710.0,78707.0,0.19085578]
[1731221290198,0.03110764,78709.0,78707.0,0.19085578]
[1731221290393,0.03110764,78708.0,78707.0,0.19085578]
[1731221290602,0.03110764,78708.0,78707.0,0.16785578]
[1731221291102,0.03110764,78708.0,78704.0,0.05272889]
[1731221291295,0.03110764,78707.0,78704.0,0.05272889]
[1731221291496,0.14815772,78712.0,78704.0,0.05272889]
[1731221291497,0.03110764,78706.0,78704.0,0.05272889]
[1731221291699,0.07010238,78705.0,78704.0,0.05272889]
[1731221292306,0.03110764,78705.0,78704.0,0.05272889]
[1731221292902,0.03111033,78705.0,78704.0,0.05272889]
[1731221294205,0.03110862,78705.0,78704.0,0.24224444]
[1731221294401,0.0001435,78718.0,78704.0,0.62340444]
[1731221294707,0.0001435,78718.0,78710.0,0.3608]
[1731221295099,0.14830122,78718.0,78710.0,0.3608]
[1731221295497,0.14830122,78718.0,78705.0,0.3608]
[1731221295899,0.14830122,78718.0,78705.0,0.552338]
[1731221296910,0.14815772,78712.0,78705.0,0.552338]
[1731221297103,0.083,78711.0,78705.0,0.552338]
[1731221297411,0.083,78711.0,78705.0,0.191538]
[1731221297603,0.083,78711.0,78704.0,0.05272889]
[1731221297809,0.03110997,78710.0,78704.0,0.05272889]
[1731221298004,0.03110997,78709.0,78704.0,0.05272889]
[1731221298204,0.03110997,78708.0,78704.0,0.05272889]
[1731221298512,0.14815772,78706.0,78704.0,0.05272889]
[1731221298697,0.03110997,78705.0,78704.0,0.05272889]
[1731221301010,0.01026597,78705.0,78704.0,0.05272889]
[1731221301205,0.49841438,78728.0,78704.0,0.60417896]
[1731221301206,0.6465721,78719.0,78704.0,0.60417896]
[1731221301411,0.03899299,78717.0,78704.0,0.60417896]
[1731221301612,0.03899299,78716.0,78704.0,0.60417896]
[1731221301808,0.03899299,78715.0,78704.0,0.60417896]
[1731221302002,0.50963772,78719.0,78704.0,0.60417896]
[1731221302003,0.03899299,78714.0,78704.0,0.60417896]
[1731221302303,0.03899256,78713.0,78704.0,0.60417896]
[1731221302503,0.50963772,78719.0,78705.0,0.0813]
[1731221302814,0.03899178,78717.0,78706.0,0.18940039]
[1731221303009,0.03899178,78716.0,78706.0,0.18940039]
[1731221303211,0.03899178,78715.0,78706.0,0.18940039]
[1731221303507,0.03899178,78714.0,78706.0,0.18940039]
[1731221303711,0.03899178,78713.0,78706.0,0.18940039]
[1731221303906,0.03899178,78712.0,78706.0,0.18940039]
[1731221304107,0.03899178,78711.0,78706.0,0.18940039]
[1731221304311,0.03899178,78710.0,78706.0,0.18940039]
[1731221304516,0.03899178,78709.0,78706.0,0.18940039]
[1731221304704,0.0001435,78718.0,78706.0,0.18940039]
[1731221305014,0.03899103,78717.0,78712.0,0.14815772]
[1731221305200,0.0001435,78718.0,78713.0,0.16746]
[1731221305399,0.0001435,78718.0,78713.0,0.35743514]
[1731221307000,0.0001435,78718.0,78713.0,0.33443514]
[1731221307603,5e-07,78718.0,78713.0,0.33443514]
[1731221308112,0.3608,78761.0,78717.0,0.14815772]
[1731221308312,0.03897738,78750.0,78743.0,0.3608]
[1731221308611,0.03897738,78749.0,78744.0,0.35994878]
[1731221308810,0.03897738,78748.0,78744.0,0.35994878]
[1731221309004,0.00010513,78753.0,78749.0,0.14815772]
[1731221309214,0.07006887,78750.0,78749.0,0.14815772]
[1731221309614,0.07006887,78750.0,78749.0,0.33804012]
[1731221309805,0.03109429,78750.0,78749.0,0.33804012]
[1731221310006,0.07006787,78750.0,78749.0,0.33804012]
[1731221310205,0.03109429,78750.0,78749.0,0.33804012]
[1731221310405,0.00010513,78753.0,78749.0,0.33804012]
[1731221310608,0.00010513,78753.0,78750.0,0.3608]
[1731221311006,0.00010513,78753.0,78750.0,0.5523841]
[1731221311206,0.00010513,78753.0,78751.0,0.0443]
[1731221311614,0.00010513,78753.0,78752.0,0.18922458]
[1731221315913,0.00010513,78753.0,78751.0,0.18941073]
[1731221316114,0.00010513,78753.0,78752.0,0.18941073]
[1731221316515,0.00010513,78753.0,78751.0,0.19108403]
[1731221316817,0.00010513,78753.0,78752.0,0.31880403]
[1731221317009,0.00010513,78753.0,78752.0,0.12772]
[1731221317210,0.00010513,78753.0,78752.0,0.31880403]
[1731221318811,1.3e-07,78753.0,78752.0,0.31880403]
[1731221319214,1.3e-07,78753.0,78752.0,0.99976403]
[1731221319422,0.0406,78774.0,78752.0,0.99976403]
[1731221319615,0.0406,78774.0,78764.0,0.3608]
[1731221319925,0.0406,78774.0,78765.0,0.31849853]
[1731221320315,0.00011173,78770.0,78765.0,0.31849853]
[1731221320921,0.00011173,78770.0,78765.0,0.19081853]
[1731221321726,0.14815772,78766.0,78765.0,0.19081853]
[1731221322911,0.14815772,78766.0,78750.0,0.3608]
[1731221323118,0.14815772,78758.0,78751.0,0.12768]
[1731221323318,0.00011173,78770.0,78751.0,0.31844731]
[1731221323319,0.0438,78757.0,78751.0,0.31844731]
[1731221325225,0.3608,78769.0,78754.0,0.14815772]
[1731221325419,0.0408,78768.0,78757.0,0.3608]
[1731221325821,0.0408,78768.0,78758.0,0.19068763]
[1731221326227,0.0408,78768.0,78764.0,0.3608]
[1731221326623,0.0408,78768.0,78765.0,0.18985147]
[1731221327721,0.0408,78768.0,78763.0,0.12768]
[1731221327922,0.14815772,78764.0,78763.0,0.12768]
[1731221328126,0.0408,78768.0,78761.0,0.12768]
[1731221328427,0.0408,78768.0,78763.0,0.19000265]
[1731221328635,0.0408,78768.0,78762.0,0.19115568]
[1731221328935,0.0408,78768.0,78761.0,0.12768]
[1731221328936,0.0408,78768.0,78764.0,0.19115568]
[1731221329318,0.0408,78768.0,78762.0,0.19115568]
[1731221329523,0.0408,78768.0,78765.0,0.1907766]
[1731221329827,0.0408,78768.0,78764.0,0.1907766]
[1731221330023,0.0408,78768.0,78766.0,0.1907766]
[1731221330427,0.0408,78768.0,78764.0,0.1907766]
[1731221330623,0.0408,78768.0,78767.0,0.19121575]
[1731221330830,0.0408,78768.0,78766.0,0.19121575]
[1731221331032,0.0408,78768.0,78767.0,0.19121575]
[1731221331533,0.0408,78768.0,78761.0,0.12768]
[1731221331534,0.0408,78768.0,78766.0,0.190466]
[1731221331732,0.0408,78768.0,78767.0,0.190466]
[1731221331937,0.0408,78768.0,78765.0,0.190466]
[1731221332126,0.0408,78768.0,78767.0,0.190466]
[1731221332435,0.0408,78768.0,78766.0,0.190466]
[1731221332620,0.0408,78768.0,78767.0,0.19016198]
[1731221333132,0.0408,78768.0,78766.0,0.19016198]
[1731221333328,0.0408,78768.0,78767.0,0.19016198]
[1731221333530,0.0408,78768.0,78764.0,0.18984436]
[1731221333730,0.0408,78768.0,78767.0,0.18984436]
[1731221334137,0.0408,78768.0,78765.0,0.18984436]
[1731221334341,0.0408,78768.0,78761.0,0.12768]
[1731221334635,0.0408,78768.0,78767.0,0.1914023]
[1731221334826,0.0408,78768.0,78673.0,0.15976937]
[1731221335132,0.0408,78768.0,78767.0,0.1914023]
[1731221335526,0.0408,78768.0,78673.0,0.13787089]
[1731221335730,0.0408,78768.0,78705.0,0.05082269]
[1731221336026,0.0408,78768.0,78766.0,0.1906019]
[1731221336228,0.0408,78768.0,78763.0,0.1906019]
[1731221336229,0.0408,78768.0,78762.0,0.1906019]
[1731221336440,0.0408,78768.0,78767.0,0.1906019]
[1731221336639,0.0408,78768.0,78766.0,0.1912052]
[1731221336834,0.0408,78768.0,78734.0,0.03806097]
[1731221337047,0.0408,78768.0,78767.0,0.1912052]
[1731221337441,0.0718886,78768.0,78763.0,0.12768]
[1731221337748,0.14815772,78764.0,78760.0,0.31910895]
[1731221338148,0.14815772,78764.0,78760.0,0.12768]
[1731221338356,0.14815772,78764.0,78761.0,0.19142895]
[1731221338648,0.03109061,78763.0,78757.0,0.12768]
[1731221338854,0.03109061,78763.0,78750.0,0.55244255]
[1731221338855,0.03109061,78762.0,78756.0,0.12768]
[1731221339146,0.03109061,78761.0,78758.0,0.19164255]
[1731221339348,0.0818,78760.0,78757.0,0.19164255]
[1731221339544,0.0818,78760.0,78744.0,0.42776]
[1731221339545,0.14815772,78758.0,78751.0,0.19164255]
[1731221339741,0.14815772,78752.0,78747.0,0.12768]
[1731221339943,0.07289463,78751.0,78746.0,0.19124023]
[1731221340143,0.14815772,78747.0,78738.0,0.12768]
[1731221340449,0.14815772,78747.0,78722.0,0.78844]
[1731221340450,0.03897628,78746.0,78734.0,0.12768]
[1731221340644,0.14815772,78739.0,78724.0,0.12768]
[1731221340856,0.08117628,78738.0,78724.0,0.12768]
[1731221341048,0.0422,78738.0,78724.0,0.12768]
[1731221341351,0.0422,78738.0,78733.0,0.00011072]
[1731221343351,0.3608,78734.0,78733.0,0.00011072]
[1731221344452,0.0422,78738.0,78733.0,0.19093887]
[1731221345864,0.36148,78741.0,78733.0,0.19093887]
[1731221346162,0.3608,78741.0,78733.0,0.19093887]
[1731221347259,0.14815772,78739.0,78733.0,0.19093887]
[1731221347454,0.14815772,78739.0,78733.0,0.00011072]
[1731221349252,0.3608,78734.0,78733.0,0.00011072]
[1731221350256,0.37988001,78734.0,78733.0,0.00011072]
[1731221350449,0.5591429,78734.0,78733.0,0.00011072]
[1731221350655,0.52803773,78734.0,78733.0,0.00011072]
[1731221350952,0.52803773,78734.0,78719.0,0.12732]
[1731221350953,0.52803773,78734.0,78719.0,0.10443072]
[1731221351154,0.14815772,78728.0,78719.0,0.10443072]
[1731221351352,0.14815772,78728.0,78720.0,0.18957826]
[1731221351953,0.14815772,78728.0,78724.0,0.00014827]
[1731221352358,0.0415,78727.0,78724.0,0.00014827]
[1731221352755,0.0415,78727.0,78725.0,0.19029397]
[1731221355660,0.0424,78733.0,78725.0,0.19029397]
[1731221356260,0.19055772,78733.0,78725.0,0.19029397]
[1731221357354,0.19055772,78733.0,78727.0,0.3608]
[1731221357355,0.0424,78733.0,78727.0,0.3608]
[1731221357752,0.0424,78733.0,78728.0,0.18973766]
[1731221358358,0.14815772,78738.0,78728.0,0.18973766]
[1731221358955,0.38064001,78741.0,78728.0,0.18973766]
[1731221359159,0.3608,78741.0,78728.0,0.18973766]
[1731221363767,0.50895772,78741.0,78729.0,0.16896]
[1731221363966,0.50895772,78734.0,78728.0,0.18973766]
[1731221364174,0.50895772,78734.0,78730.0,0.19050267]
[1731221364367,0.14815772,78731.0,78724.0,0.12750827]
[1731221364564,0.0836,78730.0,78725.0,0.19050267]
[1731221364766,0.0836,78730.0,78724.0,0.00014827]
[1731221365072,0.14815772,78725.0,78724.0,0.00014827]
[1731221365871,0.17926535,78725.0,78724.0,0.00014827]
[1731221366079,0.17926548,78725.0,78724.0,0.00014827]
[1731221366268,0.14815772,78725.0,78724.0,0.00014827]
[1731221366668,0.14815772,78725.0,78707.0,0.10641368]
[1731221366869,0.3608,78718.0,78707.0,0.10641368]
[1731221367176,0.3608,78718.0,78708.0,0.190749]
[1731221367674,0.3608,78718.0,78715.0,0.00015664]
[1731221369169,0.3608,78718.0,78716.0,0.19042967]
[1731221369374,0.3608,78718.0,78717.0,0.0406]
[1731221369671,0.3919074,78718.0,78717.0,0.0406]
[1731221369866,0.3919074,78718.0,78717.0,0.23215454]
[1731221370065,0.3608,78718.0,78717.0,0.23215454]
[1731221373067,0.3608,78727.0,78717.0,0.23215454]
[1731221373278,0.0311052,78726.0,78719.0,0.14815772]
[1731221373474,0.0311052,78725.0,78720.0,0.12736]
[1731221373679,0.0311052,78724.0,78720.0,0.31726882]
[1731221373982,0.0311052,78723.0,78720.0,0.31726882]
[1731221374176,0.00010459,78729.0,78720.0,0.31726882]
[1731221374385,0.03110442,78728.0,78720.0,0.31726882]
[1731221374582,0.031104,78727.0,78720.0,0.31726882]
[1731221374881,0.031104,78726.0,78720.0,0.31726882]
[1731221375079,0.00010459,78729.0,78720.0,0.31726882]
[1731221375280,0.03110305,78728.0,78720.0,0.31726882]
[1731221378083,0.03110305,78727.0,78720.0,0.31726882]
[1731221378287,0.07008874,78726.0,78720.0,0.31726882]
[1731221378487,0.07008874,78725.0,78720.0,0.31726882]
[1731221378685,0.07008874,78724.0,78720.0,0.31726882]
[1731221378987,0.07008874,78723.0,78720.0,0.31726882]
[1731221379186,0.03110305,78722.0,78720.0,0.31726882]
[1731221379381,0.03110305,78721.0,78720.0,0.31726882]
[1731221379576,0.03110399,78721.0,78720.0,0.31726882]
[1731221379781,0.00010459,78729.0,78720.0,0.31726882]
[1731221379980,0.03110383,78728.0,78720.0,0.31726882]
[1731221380182,0.03110383,78727.0,78720.0,0.31726882]
[1731221380383,0.03110383,78726.0,78720.0,0.31726882]
[1731221380784,0.03110383,78725.0,78720.0,0.31726882]
[1731221380981,0.03110383,78724.0,78720.0,0.29426882]
[1731221381292,0.03110383,78723.0,78720.0,0.29426882]
[1731221383192,0.03110383,78723.0,78715.0,0.00015664]
[1731221383193,0.03110383,78723.0,78719.0,0.12696]
[1731221383392,0.0405,78724.0,78719.0,0.12696]
[1731221383584,0.0311063,78723.0,78719.0,0.12696]
[1731221383783,0.0405,78724.0,78719.0,0.12696]
[1731221383784,0.0311065,78722.0,78719.0,0.12696]
[1731221383992,0.0405,78724.0,78719.0,0.12696]
[1731221383993,0.03110695,78721.0,78719.0,0.12696]
[1731221384194,0.03110695,78720.0,78719.0,0.12696]
[1731221384388,0.0700973,78720.0,78719.0,0.12696]
[1731221384790,0.07009733,78720.0,78719.0,0.12696]
[1731221385291,0.03110695,78720.0,78719.0,0.12696]
[1731221386491,0.03110695,78720.0,78715.0,0.00015664]
[1731221386689,0.03110695,78719.0,78715.0,0.00015664]
[1731221386992,0.03110695,78718.0,78715.0,0.00015664]
[1731221387198,0.03110695,78717.0,78715.0,0.00015664]
[1731221387389,0.03110695,78716.0,78715.0,0.00015664]
[1731221387691,0.07009821,78723.0,78715.0,0.00015664]
[1731221387898,0.03110695,78722.0,78715.0,0.00015664]
[1731221388190,0.03110695,78721.0,78716.0,0.19002371]
[1731221388385,0.03110695,78720.0,78716.0,0.19002371]
[1731221388586,0.0405,78724.0,78716.0,0.19002371]
[1731221388587,0.03110695,78719.0,78716.0,0.19002371]
[1731221388786,0.03110695,78718.0,78716.0,0.19002371]
[1731221388985,0.0405,78724.0,78716.0,0.19002371]
[1731221388986,0.03110695,78717.0,78716.0,0.19002371]
[1731221389194,0.0405,78724.0,78716.0,0.19002371]
[1731221389395,0.03110622,78723.0,78716.0,0.19002371]
[1731221389597,0.03110622,78722.0,78716.0,0.19002371]
[1731221389794,0.03110622,78721.0,78716.0,0.19002371]
[1731221389997,0.03110622,78720.0,78716.0,0.19002371]
[1731221390188,0.3608,78726.0,78719.0,0.14815772]
[1731221390386,0.00010459,78729.0,78719.0,0.14815772]
[1731221390387,0.03110447,78725.0,78719.0,0.14815772]
[1731221390587,0.03110447,78724.0,78720.0,0.19024806]
[1731221390792,0.00010459,78729.0,78720.0,0.19024806]
[1731221390793,0.03110447,78723.0,78720.0,0.19024806]
[1731221390995,0.03110447,78722.0,78720.0,0.19024806]
[1731221391295,0.00010459,78729.0,78721.0,0.0427]
[1731221391495,0.0311036,78728.0,78721.0,0.0427]
[1731221391695,0.0311036,78727.0,78722.0,0.19114748]
[1731221391894,0.00010459,78729.0,78726.0,0.14815772]
[1731221392094,0.03110224,78728.0,78727.0,0.12696]
[1731221392290,0.03110224,78728.0,78727.0,0.31648564]
[1731221393391,0.07008606,78728.0,78727.0,0.31648564]
[1731221394496,0.03110224,78728.0,78727.0,0.31648564]
[1731221394998,0.00010459,78729.0,78727.0,0.31648564]
[1731221395196,0.03110224,78728.0,78727.0,0.31648564]
[1731221395996,0.03110224,78728.0,78727.0,0.29348564]
[1731221398103,0.03110224,78728.0,78727.0,0.18952564]
[1731221399195,0.03898355,78728.0,78727.0,0.18952564]
[1731221399495,0.00010459,78729.0,78727.0,0.18952564]
[1731221399699,0.00010459,78729.0,78727.0,0.24033413]
[1731221400596,5.9e-07,78729.0,78728.0,0.0842]
[1731221400998,5.9e-07,78729.0,78728.0,0.27554846]
[1731221401398,5.9e-07,78729.0,78728.0,0.23384846]
[1731221401606,5.9e-07,78729.0,78728.0,0.19134846]
[1731221402601,5.9e-07,78729.0,78728.0,0.21676798]
[1731221403102,0.3608,78756.0,78729.0,0.38104]
[1731221403306,0.3608,78756.0,78740.0,0.14815772]
[1731221403502,0.3608,78756.0,78741.0,0.16836]
[1731221403710,0.3608,78756.0,78741.0,0.3576996]
[1731221404009,0.00014395,78754.0,78741.0,0.3576996]
[1731221404304,0.00014395,78754.0,78742.0,0.12696]
[1731221404609,0.00014395,78754.0,78746.0,0.14815772]
[1731221404910,0.00014395,78754.0,78752.0,0.14815772]
[1731221406709,0.00014395,78754.0,78753.0,0.18932684]
[1731221408902,0.00014395,78754.0,78753.0,0.31584684]
[1731221409905,0.00014395,78754.0,78753.0,0.46400456]
[1731221410909,0.00014395,78754.0,78753.0,0.44100456]
[1731221411105,9.5e-07,78754.0,78753.0,0.44100456]
[1731221411413,0.34065695,78756.0,78753.0,0.44100456]
[1731221411815,0.29214195,78756.0,78754.0,0.0414]
[1731221412018,0.26267795,78756.0,78754.0,0.0414]
[1731221412315,4.1e-07,78758.0,78755.0,0.5709056]
[1731221412611,0.3608,78769.0,78756.0,0.0406]
[1731221412806,0.3608,78769.0,78767.0,0.14815772]
[1731221412807,0.03109078,78768.0,78767.0,0.14815772]
[1731221413007,0.03109078,78768.0,78767.0,0.27467772]
[1731221413209,0.03109078,78768.0,78767.0,0.46518107]
[1731221414012,0.03109088,78768.0,78767.0,0.46518107]
[1731221414211,0.03109088,78768.0,78767.0,0.31702335]
[1731221414510,0.03109088,78768.0,78767.0,0.46518107]
[1731221415205,0.3608,78769.0,78767.0,0.46518107]
[1731221416218,0.3608,78769.0,78767.0,0.31702335]
[1731221417513,0.3608,78769.0,78768.0,0.12652]
[1731221417912,0.3608,78769.0,78768.0,0.31773356]
[1731221418112,0.3608,78769.0,78768.0,0.19121356]
[1731221418512,0.3608,78769.0,78767.0,0.12652]
[1731221418718,0.3608,78769.0,78768.0,0.1892399]
[1731221420616,0.3608,78769.0,78766.0,0.12652]
[1731221421014,0.3608,78769.0,78767.0,0.19000801]
[1731221421216,0.59910281,78768.0,78755.0,0.00012909]
[1731221421520,0.3608,78769.0,78756.0,0.19000801]
[1731221421521,0.3608,78757.0,78756.0,0.19000801]
[1731221421723,0.39189165,78757.0,78755.0,0.00012909]
[1731221421920,0.11619165,78756.0,78755.0,0.00012909]
[1731221423919,0.26434937,78756.0,78755.0,0.00012909]
[1731221424120,0.11619165,78756.0,78755.0,0.00012909]
[1731221426321,0.0851,78756.0,78755.0,0.00012909]
[1731221426525,0.11619431,78756.0,78755.0,0.00012909]
[1731221426727,0.0851,78756.0,78755.0,0.00012909]
[1731221426921,0.1161934,78756.0,78755.0,0.00012909]
[1731221427121,0.0851,78756.0,78755.0,0.00012909]
[1731221427325,0.11619342,78756.0,78748.0,0.12528681]
[1731221427623,0.03109342,78755.0,78749.0,0.19041352]
[1731221428434,0.03109342,78755.0,78753.0,0.00015306]
[1731221429926,0.36246899,78769.0,78754.0,0.19058425]
[1731221430140,0.36178899,78769.0,78768.0,0.14815772]
[1731221430331,0.43185245,78769.0,78768.0,0.14815772]
[1731221431533,0.39288088,78769.0,78765.0,0.12652]
[1731221431729,0.03109189,78768.0,78765.0,0.12652]
[1731221431935,0.03109189,78767.0,78766.0,0.19161672]
[1731221434838,0.03109189,78767.0,78766.0,0.31813672]
[1731221435031,0.07006239,78768.0,78766.0,0.12652]
[1731221435229,0.36254899,78769.0,78766.0,0.31710525]
[1731221435230,0.03109189,78767.0,78766.0,0.31710525]
[1731221436035,0.03109189,78767.0,78766.0,0.46526297]
[1731221437426,0.03109189,78767.0,78766.0,0.19058525]
[1731221437838,0.03109189,78767.0,78764.0,0.19080765]
[1731221438135,0.07006228,78766.0,78763.0,0.12648]
[1731221438434,0.03109189,78765.0,78764.0,0.19139708]
[1731221440936,0.07006083,78768.0,78764.0,0.16839708]
[1731221441246,0.36246899,78769.0,78767.0,0.14815772]
[1731221441536,0.07005916,78768.0,78764.0,0.082]
[1731221441935,0.07005916,78768.0,78765.0,0.19156154]
[1731221442243,0.07005916,78768.0,78767.0,0.14815772]
[1731221442537,0.07005916,78768.0,78767.0,0.33971926]
[1731221443039,0.00012419,78777.0,78767.0,0.48787698]
[1731221443229,0.0428,78797.0,78776.0,0.3608]
[1731221443429,0.0428,78797.0,78792.0,0.14815772]
[1731221443635,0.0428,78797.0,78792.0,0.27423772]
[1731221443929,0.0428,78797.0,78792.0,0.14815772]
[1731221444132,0.0428,78797.0,78792.0,0.27423772]
[1731221444332,0.00011168,78795.0,78792.0,0.27423772]
[1731221444536,0.01604,78793.0,78792.0,0.4637697]
[1731221445744,0.00011168,78795.0,78792.0,0.61192742]
[1731221445942,0.00011168,78795.0,78793.0,0.12604]
[1731221446247,0.00011168,78795.0,78794.0,0.31611795]
[1731221446742,0.00011168,78795.0,78794.0,0.12604]
[1731221446940,0.00011168,78795.0,78794.0,0.31689551]
[1731221448235,0.00011168,78795.0,78794.0,0.31704161]
[1731221448846,0.00011168,78795.0,78794.0,0.35744161]
[1731221449556,0.123,78813.0,78794.0,0.35744161]
[1731221449734,0.123,78813.0,78811.0,0.14815772]
[1731221449938,0.123,78813.0,78802.0,0.3608]
[1731221450136,0.14815772,78811.0,78803.0,0.12604]
[1731221450443,0.123,78813.0,78803.0,0.31609901]
[1731221450646,0.00016226,78808.0,78803.0,0.31609901]
[1731221451141,0.03107613,78807.0,78803.0,0.31609901]
[1731221451343,0.00016226,78808.0,78803.0,0.31609901]
[1731221451639,0.00016226,78808.0,78805.0,0.14815772]
[1731221452035,0.03107569,78807.0,78806.0,0.18908007]
[1731221452238,0.00016226,78808.0,78806.0,0.18908007]
[1731221453444,0.00016226,78808.0,78807.0,0.12604]
[1731221453843,0.0423,78822.0,78807.0,0.31697758]
[1731221454143,0.03107112,78821.0,78819.0,0.14815772]
[1731221454450,0.00064,78823.0,78820.0,0.31604619]
[1731221454640,0.00064,78835.0,78822.0,0.3608]
[1731221454842,0.1247,78840.0,78834.0,0.3608]
[1731221455046,0.03106404,78839.0,78834.0,0.3608]
[1731221455345,0.12483021,78840.0,78835.0,0.18990366]
[1731221456146,0.12483021,78840.0,78835.0,0.16690366]
[1731221456344,0.12483021,78840.0,78839.0,0.14815772]
[1731221456735,0.12483021,78840.0,78839.0,0.18947126]
[1731221456942,0.12483021,78840.0,78839.0,0.31551126]
[1731221457144,0.12483021,78840.0,78839.0,0.12604]
[1731221457350,0.12483021,78840.0,78839.0,0.31564361]
[1731221457950,0.12483021,78840.0,78839.0,0.46380133]
[1731221459045,0.04093021,78840.0,78839.0,0.46380133]
[1731221459248,0.04093021,78840.0,78839.0,0.46392862]
[1731221459249,0.00013021,78840.0,78839.0,0.46392862]
[1731221459737,0.1224,78856.0,78839.0,0.84444862]
[1731221459943,0.1224,78856.0,78847.0,0.14815772]
[1731221460342,0.1224,78856.0,78848.0,0.19123507]
[1731221460545,0.1224,78856.0,78851.0,0.3608]
[1731221460745,0.3608,78866.0,78855.0,0.14815772]
[1731221461050,0.0418,78865.0,78856.0,0.19010122]
[1731221461348,0.0418,78865.0,78864.0,0.14815772]
[1731221461648,0.0418,78865.0,78864.0,0.46425894]
[1731221463147,0.00010956,78870.0,78864.0,0.61241666]
[1731221463344,0.00010956,78870.0,78869.0,0.3608]
[1731221463646,0.00010956,78870.0,78869.0,0.55023702]
[1731221464046,0.14815772,78915.0,78869.0,1.23059702]
[1731221464244,0.0832,78897.0,78892.0,0.14815772]
[1731221464445,0.0812,78897.0,78893.0,0.12596]
[1731221464648,0.0812,78897.0,78893.0,0.31538504]
[1731221464937,0.00015181,78896.0,78893.0,0.31538504]
[1731221465138,0.00015181,78896.0,78894.0,0.36090523]
[1731221465451,0.00015181,78896.0,78895.0,0.19078656]
[1731221465940,0.00015181,78896.0,78894.0,0.36090523]
[1731221466144,0.00015181,78896.0,78895.0,0.12596]
[1731221466643,0.00015181,78896.0,78894.0,0.36090523]
[1731221467248,0.00015181,78896.0,78895.0,0.19076172]
[1731221467850,0.00015181,78896.0,78895.0,0.33891944]
[1731221470747,0.00015181,78896.0,78895.0,0.33881944]
[1731221471146,0.00015181,78896.0,78895.0,0.31581944]
[1731221471551,0.00015181,78896.0,78895.0,0.69605944]
[1731221471755,0.00015181,78896.0,78895.0,0.31581944]
[1731221472251,0.00015181,78896.0,78895.0,0.44133944]
[1731221472846,0.00015181,78896.0,78895.0,0.31581944]
[1731221473244,0.00015181,78896.0,78895.0,0.29314172]
[1731221473751,0.00015181,78896.0,78895.0,0.44129944]
[1731221474151,0.00015181,78896.0,78895.0,0.16766172]
[1731221474456,0.00015181,78896.0,78894.0,0.00010523]
[1731221474756,0.38024,78895.0,78879.0,0.3608]
[1731221475054,0.14815772,78887.0,78879.0,0.3608]
[1731221475253,0.14815772,78887.0,78876.0,0.19065689]
[1731221475450,0.14815772,78887.0,78870.0,0.12548]
[1731221475759,0.14815772,78887.0,78879.0,0.00015337]
[1731221476144,0.14815772,78881.0,78876.0,0.05071251]
[1731221476349,0.14815772,78881.0,78868.0,0.3608]
[1731221477250,0.38032,78880.0,78869.0,0.00012275]
[1731221477646,0.38032,78879.0,78869.0,0.00012275]
[1731221477846,0.38032,78879.0,78848.0,0.12548]
[1731221477847,0.3608,78877.0,78848.0,0.12548]
[1731221478153,0.3608,78865.0,78853.0,0.3608]
[1731221478351,0.3608,78865.0,78845.0,0.14815772]
[1731221478553,0.6608,78865.0,78846.0,0.18945952]
[1731221478860,0.6608,78865.0,78850.0,0.36093205]
[1731221479362,0.3608,78865.0,78850.0,0.36093205]
[1731221479751,0.14815772,78860.0,78850.0,0.36093205]
[1731221480251,0.14815772,78853.0,78850.0,0.00013205]
[1731221480452,0.14815772,78859.0,78850.0,0.00013205]
[1731221480648,0.3608,78858.0,78850.0,0.00013205]
[1731221480849,0.00064,78856.0,78850.0,0.00013205]
[1731221481055,0.0385,78857.0,78850.0,0.00013205]
[1731221483554,0.3608,78865.0,78852.0,0.14815772]
[1731221483860,0.3608,78865.0,78857.0,0.3608]
[1731221484857,0.3608,78858.0,78850.0,0.00013205]
[1731221485360,0.3608,78865.0,78852.0,0.14815772]
[1731221485561,0.3608,78865.0,78850.0,0.00013205]
[1731221485562,0.14815772,78859.0,78850.0,0.00013205]
[1731221486164,0.14815772,78859.0,78848.0,0.33793205]
[1731221486458,0.14815772,78859.0,78840.0,0.48708]
[1731221486659,0.3608,78858.0,78847.0,0.3608]
[1731221486860,0.3608,78865.0,78847.0,0.3608]
[1731221487257,0.3608,78865.0,78847.0,0.36096251]
[1731221488055,0.3608,78865.0,78851.0,0.14815772]
[1731221489159,0.3608,78865.0,78847.0,0.36096251]
[1731221489562,0.3608,78865.0,78852.0,0.18939355]
[1731221489763,0.3608,78865.0,78848.0,0.18939355]
[1731221490072,0.3608,78865.0,78851.0,0.14815772]
[1731221490462,0.3608,78865.0,78852.0,0.19132834]
[1731221490868,0.0391,78871.0,78860.0,0.3608]
[1731221491372,0.06448471,78871.0,78860.0,0.3608]
[1731221493666,0.3608,78865.0,78848.0,0.12552]
[1731221493869,0.3608,78865.0,78847.0,0.36096251]
[1731221494066,0.3608,78858.0,78847.0,0.36096251]
[1731221494271,0.06448471,78871.0,78856.0,0.14815772]
[1731221494571,0.06448471,78871.0,78858.0,0.14815772]
[1731221495564,0.06448471,78871.0,78856.0,0.3608]
[1731221495878,0.06448471,78871.0,78858.0,0.14815772]
[1731221496368,0.0391,78871.0,78858.0,0.14815772]
[1731221497066,0.36334276,78874.0,78858.0,0.14815772]
[1731221497270,0.36270276,78874.0,78860.0,0.22236173]
[1731221497468,0.00190276,78874.0,78863.0,0.3608]
[1731221497873,0.00190276,78874.0,78864.0,0.19061659]
[1731221499072,0.00190276,78874.0,78870.0,0.3608]
[1731221499380,0.00190276,78874.0,78871.0,0.18917225]
[1731221499675,0.36144,78880.0,78871.0,0.18917225]